[Event "Cracovia Festival-A 2023"]
[Site "Krakow"]
[Date "2023.12.29"]
[Round "3.32"]
[White "Aakash Sharadchandra, Dalvi"]
[Black "Marszalek, Maciej"]
[Result "1-0"]
[ECO "E91"]
[WhiteElo "2130"]
[BlackElo "2269"]
[Annotator "ChessBase"]
[PlyCount "71"]
[EventDate "2023.12.24"]
[EventType "swiss"]
[EventCountry "POL"]
[SourceTitle "playchess.com"]
[Source "ChessBase"]
[SourceQuality "1"]
[TimeControl "40/5400+30:1800+30"]

1. d4 {[%emt 0:00:02]} Nf6 {[%emt 0:00:07]} 2. c4 {[%emt 0:00:05]} g6 {[%emt 0:00:03]} 3. Nc3 {[%emt 0:00:05]} Bg7 {[%emt 0:00:05]} 4. e4 {[%emt 0:00:05]} d6 {[%emt 0:00:05]} 5. Nf3 {[%emt 0:00:05]} O-O {[%emt 0:00:12]} 6. Be2 {[%emt 0:00:04]} Nbd7 {[%emt 0:03:37]} 7. O-O {[%emt 0:00:07]} e5 {[%emt 0:00:03]} 8. Qc2 {[%emt 0:01:13]} c6 {[%emt 0:00:24]} 9. Rd1 {[%emt 0:02:35]} Qe7 {[%emt 0:00:54]} 10. d5 {[%emt 0:03:03]} c5 {[%emt 0:07:36]} 11. a3 {[%emt 0:00:15]} h6 {[%emt 0:02:21]} 12. b4 {[%emt 0:00:50]} Nh7 {[%emt 0:02:11]} 13. bxc5 {[%emt 0:07:03]} Nxc5 {[%emt 0:00:09]} 14. Be3 {[%emt 0:00:23]} b6 {[%emt 0:00:47]} 15. Bxc5 {[%emt 0:00:56]} bxc5 {[%emt 0:00:27]} 16. Rab1 {[%emt 0:00:08]} f5 {[%emt 0:00:50]} 17. Qa4 {[%emt 0:01:39]} fxe4 {[%emt 0:05:25]} 18. Nxe4 {[%emt 0:00:14]} Bf5 {[%emt 0:00:18]} 19. Nfd2 {[%emt 0:01:56]} Nf6 {[%emt 0:04:26]} 20. Bf3 {[%emt 0:09:49]} Nxe4 {[%emt 0:07:49]} 21. Nxe4 {[%emt 0:00:27]} Rab8 {[%emt 0:17:45]} 22. Qc6 {[%emt 0:08:31]} Bxe4 {[%emt 0:01:42]} 23. Bxe4 {[%emt 0:00:03]} Kh7 {[%emt 0:00:21]} 24. Qa4 {[%emt 0:03:44]} h5 {[%emt 0:04:56]} 25. Qc2 {[%emt 0:01:28]} Qg5 {[%emt 0:00:09]} 26. h4 {[%emt 0:02:46]} Qf6 {[%emt 0:06:45]} 27. Rxb8 {[%emt 0:03:48]} Rxb8 {[%emt 0:00:01]} 28. Rd3 {[%emt 0:00:11]} Qxh4 {[%emt 0:15:17]} 29. Bxg6+ {[%emt 0:01:11]} Kg8 {[%emt 0:00:25]} 30. Rh3 {[%emt 0:00:39]} Qd4 {[%emt 0:03:47]} 31. Qf5 {[%emt 0:02:36]} Qf4 {[%emt 0:02:41]} 32. Qe6+ {[%emt 0:01:03]} Kh8 {[%emt 0:00:01]} 33. Rxh5+ {[%emt 0:00:13]} Bh6 {[%emt 0:00:03]} 34. g3 {[%emt 0:02:48]} Qc1+ {[%emt 0:01:13]} 35. Kg2 {[%emt 0:00:10]} Rf8 {[%emt 0:00:05]} 36. Bf5 {[%emt 0:00:18]} 1-0

[Event "Cracovia Festival-A 2023"]
[Site "Krakow"]
[Date "2023.12.29"]
[Round "3.33"]
[White "Manko, Mariia"]
[Black "Niedbala, Bartlomiej"]
[Result "0-1"]
[ECO "A62"]
[WhiteElo "2128"]
[BlackElo "2393"]
[Annotator "ChessBase"]
[PlyCount "114"]
[EventDate "2023.12.24"]
[EventType "swiss"]
[EventCountry "POL"]
[SourceTitle "playchess.com"]
[Source "ChessBase"]
[SourceQuality "1"]
[TimeControl "40/5400+30:1800+30"]

1. d4 {[%emt 0:02:06]} Nf6 {[%emt 0:00:02]} 2. c4 {[%emt 0:00:09]} e6 {[%emt 0:00:04]} 3. g3 {[%emt 0:00:09]} c5 {[%emt 0:00:04]} 4. d5 {[%emt 0:01:03]} exd5 {[%emt 0:00:16]} 5. cxd5 {[%emt 0:00:06]} d6 {[%emt 0:00:03]} 6. Nc3 {[%emt 0:01:46]} g6 {[%emt 0:00:02]} 7. Bg2 {[%emt 0:00:22]} Bg7 {[%emt 0:00:02]} 8. Nf3 {[%emt 0:00:21]} O-O {[%emt 0:00:06]} 9. O-O {[%emt 0:00:12]} Re8 {[%emt 0:00:01]} 10. Bf4 {[%emt 0:02:32]} h6 {[%emt 0:02:44]} 11. Qc1 {[%emt 0:08:25]} g5 {[%emt 0:01:35]} 12. Be3 {[%emt 0:00:15]} Bf5 {[%emt 0:02:16]} 13. h4 {[%emt 0:00:26]} g4 {[%emt 0:00:13]} 14. Nd2 {[%emt 0:00:12]} Kh7 {[%emt 0:08:59]} 15. Nc4 {[%emt 0:03:05]} a6 {[%emt 0:07:50]} 16. a4 {[%emt 0:06:35]} Bf8 {[%emt 0:00:38]} 17. Bf4 {[%emt 0:04:13]} Qc7 {[%emt 0:00:54]} 18. e4 {[%emt 0:15:48]} Bg6 {[%emt 0:00:43]} 19. Re1 {[%emt 0:09:43]} Nbd7 {[%emt 0:00:33]} 20. Qd2 {[%emt 0:01:07]} Nh5 {[%emt 0:02:35]} 21. Qd1 {[%emt 0:20:41]} Rab8 {[%emt 0:04:51]} 22. a5 {[%emt 0:02:54]} b5 {[%emt 0:03:25]} 23. axb6 {[%emt 0:00:31]} Nxb6 {[%emt 0:00:01]} 24. Ne3 {[%emt 0:04:39]} Nd7 {[%emt 0:10:01]} 25. Rxa6 {[%emt 0:01:24]} Nxf4 {[%emt 0:02:11]} 26. gxf4 {[%emt 0:00:58]} Rxb2 {[%emt 0:00:22]} 27. Qxg4 {[%emt 0:03:11]} Nf6 {[%emt 0:02:22]} 28. Qh3 {[%emt 0:00:11]} Qb7 {[%emt 0:01:25]} 29. Rea1 {[%emt 0:03:06]} Qb4 {[%emt 0:01:51]} 30. h5 {[%emt 0:01:16]} Nxh5 {[%emt 0:02:29]} 31. f5 {[%emt 0:01:19]} Qxc3 {[%emt 0:00:02]} 32. fxg6+ {[%emt 0:00:22]} fxg6 {[%emt 0:00:03]} 33. Qd7+ {[%emt 0:01:22]} Re7 {[%emt 0:01:54]} 34. Qxd6 {[%emt 0:00:26]} Qg7 {[%emt 0:00:18]} 35. Ng4 {[%emt 0:02:53]} Rf7 {[%emt 0:10:06]} 36. Qe6 {[%emt 0:01:36]} c4 {[%emt 0:02:52]} 37. e5 {[%emt 0:02:02]} Nf4 {[%emt 0:11:52]} 38. Nf6+ {[%emt 0:00:22]} Kh8 {[%emt 0:00:02]} 39. Qg4 {[%emt 0:00:36]} Nd3 {[%emt 0:00:25]} 40. Qxc4 {[%emt 0:00:00]} Nxe5 {[%emt 0:00:00]} 41. Qh4 {[%emt 0:18:16]} g5 {[%emt 0:03:52]} 42. Qd4 {[%emt 0:03:37]} Rxf6 {[%emt 0:13:13]} 43. Qxe5 {[%emt 0:03:02]} Rbxf2 {[%emt 0:03:10]} 44. Qe8 {[%emt 0:04:02]} R2f4 {[%emt 0:07:04]} 45. Qe3 {[%emt 0:04:26]} Qc7 {[%emt 0:08:18]} 46. Rc6 {[%emt 0:01:08]} Qg7 {[%emt 0:08:14]} 47. Ra7 {[%emt 0:00:12]} Qg6 {[%emt 0:00:42]} 48. Qc3 {[%emt 0:00:22]} Qb1+ {[%emt 0:02:04]} 49. Kh2 {[%emt 0:00:38]} Bg7 {[%emt 0:03:59]} 50. Rc8+ {[%emt 0:00:04]} Kh7 {[%emt 0:00:05]} 51. Rcc7 {[%emt 0:00:07]} Kg6 {[%emt 0:05:31]} 52. Rxg7+ {[%emt 0:00:42]} Kh5 {[%emt 0:00:01]} 53. Qe3 {[%emt 0:01:13]} Rh4+ {[%emt 0:01:03]} 54. Bh3 {[%emt 0:00:34]} Qc2+ {[%emt 0:01:16]} 55. Kg3 {[%emt 0:00:13]} Re4 {[%emt 0:01:14]} 56. Qe1 {[%emt 0:00:54]} Qd3+ {[%emt 0:00:31]} 57. Kh2 {[%emt 0:00:29]} Rxe1 {[%emt 0:00:10]} 0-1

[Event "Cracovia Festival-A 2023"]
[Site "Krakow"]
[Date "2023.12.29"]
[Round "3.34"]
[White "Hnatyshyn, Anastasiia"]
[Black "Turski, Bartlomiej"]
[Result "0-1"]
[ECO "B80"]
[WhiteElo "2152"]
[BlackElo "2380"]
[Annotator "ChessBase"]
[PlyCount "90"]
[EventDate "2023.12.24"]
[EventType "swiss"]
[EventCountry "POL"]
[SourceTitle "playchess.com"]
[Source "ChessBase"]
[SourceQuality "1"]
[TimeControl "40/5400+30:1800+30"]

1. e4 {[%emt 0:00:03]} c5 {[%emt 0:00:03]} 2. Nf3 {[%emt 0:00:13]} e6 {[%emt 0:00:19]} 3. d4 {[%emt 0:00:06]} cxd4 {[%emt 0:00:03]} 4. Nxd4 {[%emt 0:00:05]} Nf6 {[%emt 0:00:03]} 5. Nc3 {[%emt 0:00:15]} d6 {[%emt 0:00:06]} 6. Bg5 {[%emt 0:01:03]} h6 {[%emt 0:00:04]} 7. Be3 {[%emt 0:02:26]} a6 {[%emt 0:00:07]} 8. a4 {[%emt 0:01:26]} b6 {[%emt 0:01:55]} 9. Be2 {[%emt 0:07:50]} Bb7 {[%emt 0:02:19]} 10. f3 {[%emt 0:00:30]} Be7 {[%emt 0:01:45]} 11. O-O {[%emt 0:00:31]} O-O {[%emt 0:00:37]} 12. Qe1 {[%emt 0:02:16]} Nbd7 {[%emt 0:09:33]} 13. Qf2 {[%emt 0:03:06]} Rc8 {[%emt 0:09:58]} 14. Rfd1 {[%emt 0:03:55]} Ne5 {[%emt 0:05:38]} 15. Nb3 {[%emt 0:05:07]} Nfd7 {[%emt 0:01:38]} 16. Qf1 {[%emt 0:06:23]} Qc7 {[%emt 0:13:55]} 17. Nd2 {[%emt 0:07:47]} Nc5 {[%emt 0:03:00]} 18. Rac1 {[%emt 0:10:46]} f5 {[%emt 0:02:42]} 19. f4 {[%emt 0:02:28]} Nxe4 {[%emt 0:13:17]} 20. Ncxe4 {[%emt 0:07:46]} fxe4 {[%emt 0:00:15]} 21. Qf2 {[%emt 0:06:03]} Ng6 {[%emt 0:04:35]} 22. g3 {[%emt 0:08:17]} e5 {[%emt 0:06:50]} 23. f5 {[%emt 0:03:18]} d5 {[%emt 0:00:49]} 24. c3 {[%emt 0:00:58]} Bc5 {[%emt 0:01:20]} 25. Nf1 {[%emt 0:04:29]} Ne7 {[%emt 0:04:16]} 26. Bg4 {[%emt 0:01:01]} a5 {[%emt 0:02:01]} 27. b4 {[%emt 0:05:33]} Bxe3 {[%emt 0:02:14]} 28. Qxe3 {[%emt 0:02:41]} Nxf5 {[%emt 0:00:28]} 29. Qd2 {[%emt 0:00:21]} Rcd8 {[%emt 0:02:37]} 30. Qe2 {[%emt 0:03:24]} Qe7 {[%emt 0:01:50]} 31. Ne3 {[%emt 0:03:02]} Nxe3 {[%emt 0:01:00]} 32. Qxe3 {[%emt 0:00:03]} axb4 {[%emt 0:01:17]} 33. Qxb6 {[%emt 0:00:38]} bxc3 {[%emt 0:00:58]} 34. Rxc3 {[%emt 0:00:15]} Kh8 {[%emt 0:03:12]} 35. h4 {[%emt 0:02:20]} d4 {[%emt 0:01:34]} 36. Rc7 {[%emt 0:00:59]} Qa3 {[%emt 0:00:11]} 37. Kg2 {[%emt 0:00:39]} Qa2+ {[%emt 0:01:51]} 38. Kh3 {[%emt 0:00:21]} h5 {[%emt 0:01:05]} 39. Bxh5 {[%emt 0:01:04]} Bc8+ {[%emt 0:00:52]} 40. Rxc8 {[%emt 0:00:00]} Rxc8 {[%emt 0:00:00]} 41. Qg6 {[%emt 0:02:47]} Qd5 {[%emt 0:03:33]} 42. Qg5 {[%emt 0:03:34]} Rc6 {[%emt 0:04:26]} 43. Rb1 {[%emt 0:03:21]} e3 {[%emt 0:03:35]} 44. Bg4 {[%emt 0:02:15]} Qe4 {[%emt 0:01:13]} 45. Qe7 {[%emt 0:00:26]} Rcf6 {[%emt 0:00:57]} 0-1

[Event "Cracovia Festival-A 2023"]
[Site "Krakow"]
[Date "2023.12.29"]
[Round "3.35"]
[White "Gbiorczyk, Mikolaj"]
[Black "Dubnevych, Maksym"]
[Result "0-1"]
[ECO "B32"]
[WhiteElo "2137"]
[BlackElo "2340"]
[Annotator "ChessBase"]
[PlyCount "102"]
[EventDate "2023.12.24"]
[EventType "swiss"]
[EventCountry "POL"]
[SourceTitle "playchess.com"]
[Source "ChessBase"]
[SourceQuality "1"]
[TimeControl "40/5400+30:1800+30"]

1. e4 {[%emt 0:00:04]} c5 {[%emt 0:00:03]} 2. Nf3 {[%emt 0:00:22]} Nc6 {[%emt 0:00:02]} 3. d4 {[%emt 0:00:17]} cxd4 {[%emt 0:00:05]} 4. Nxd4 {[%emt 0:00:04]} e5 {[%emt 0:00:03]} 5. Nb5 {[%emt 0:00:44]} d6 {[%emt 0:00:05]} 6. N1c3 {[%emt 0:00:58]} a6 {[%emt 0:00:04]} 7. Na3 {[%emt 0:00:04]} Be6 {[%emt 0:00:03]} 8. Nc4 {[%emt 0:03:10]} Rb8 {[%emt 0:01:30]} 9. Nd5 {[%emt 0:01:17]} Bxd5 {[%emt 0:04:42]} 10. exd5 {[%emt 0:00:29]} Nce7 {[%emt 0:00:15]} 11. g3 {[%emt 0:01:01]} g6 {[%emt 0:01:30]} 12. Bg2 {[%emt 0:01:35]} Bh6 {[%emt 0:01:02]} 13. Bxh6 {[%emt 0:01:53]} Nxh6 {[%emt 0:02:18]} 14. Qd2 {[%emt 0:07:55]} Nhf5 {[%emt 0:07:50]} 15. O-O {[%emt 0:13:11]} O-O {[%emt 0:00:38]} 16. b4 {[%emt 0:08:05]} Qc7 {[%emt 0:10:30]} 17. Nb2 {[%emt 0:08:56]} Nd4 {[%emt 0:01:02]} 18. c4 {[%emt 0:03:56]} b5 {[%emt 0:00:21]} 19. Rfc1 {[%emt 0:07:41]} bxc4 {[%emt 0:00:05]} 20. Nxc4 {[%emt 0:01:37]} Qd7 {[%emt 0:03:25]} 21. Rab1 {[%emt 0:03:20]} Rfc8 {[%emt 0:15:13]} 22. h4 {[%emt 0:03:27]} Qg4 {[%emt 0:01:38]} 23. Kh2 {[%emt 0:06:10]} Nef5 {[%emt 0:10:53]} 24. Na5 {[%emt 0:08:16]} Rxc1 {[%emt 0:00:21]} 25. Rxc1 {[%emt 0:03:06]} Rxb4 {[%emt 0:02:16]} 26. Nc6 {[%emt 0:00:32]} Ra4 {[%emt 0:01:39]} 27. Rb1 {[%emt 0:02:25]} Nf3+ {[%emt 0:01:14]} 28. Bxf3 {[%emt 0:00:04]} Qxf3 {[%emt 0:00:02]} 29. Rb4 {[%emt 0:01:09]} Ra3 {[%emt 0:01:55]} 30. Rb3 {[%emt 0:09:31]} Rxb3 {[%emt 0:00:05]} 31. axb3 {[%emt 0:00:03]} e4 {[%emt 0:03:24]} 32. Nd4 {[%emt 0:02:59]} Qd3 {[%emt 0:00:02]} 33. Qxd3 {[%emt 0:00:04]} exd3 {[%emt 0:00:01]} 34. Nf3 {[%emt 0:00:07]} Ne7 {[%emt 0:00:03]} 35. Kg2 {[%emt 0:00:38]} Nxd5 {[%emt 0:00:02]} 36. Nd2 {[%emt 0:00:04]} f5 {[%emt 0:01:04]} 37. f3 {[%emt 0:01:42]} f4 {[%emt 0:01:35]} 38. gxf4 {[%emt 0:00:28]} Nxf4+ {[%emt 0:00:01]} 39. Kf2 {[%emt 0:00:26]} Kf7 {[%emt 0:00:20]} 40. Ke3 {[%emt 0:00:00]} Ng2+ {[%emt 0:00:00]} 41. Kxd3 {[%emt 0:02:12]} Nxh4 {[%emt 0:00:03]} 42. Ne4 {[%emt 0:04:23]} Nxf3 {[%emt 0:02:31]} 43. Nxd6+ {[%emt 0:00:19]} Ke6 {[%emt 0:03:37]} 44. Ne4 {[%emt 0:00:31]} Ke5 {[%emt 0:00:54]} 45. Nc5 {[%emt 0:00:46]} a5 {[%emt 0:16:56]} 46. Nb7 {[%emt 0:01:46]} Kf4 {[%emt 0:00:23]} 47. Nxa5 {[%emt 0:00:48]} h5 {[%emt 0:01:00]} 48. b4 {[%emt 0:03:44]} h4 {[%emt 0:00:07]} 49. b5 {[%emt 0:01:08]} h3 {[%emt 0:00:18]} 50. b6 {[%emt 0:00:22]} h2 {[%emt 0:00:08]} 51. b7 {[%emt 0:00:06]} Ne5+ {[%emt 0:00:04]} 0-1

[Event "Cracovia Festival-A 2023"]
[Site "Krakow"]
[Date "2023.12.29"]
[Round "3.36"]
[White "Pacuszka, Tomasz"]
[Black "Ongut, Tamas Gunes"]
[Result "0-1"]
[ECO "A01"]
[WhiteElo "2124"]
[BlackElo "2313"]
[Annotator "ChessBase"]
[PlyCount "106"]
[EventDate "2023.12.24"]
[EventType "swiss"]
[EventCountry "POL"]
[SourceTitle "playchess.com"]
[Source "ChessBase"]
[SourceQuality "1"]
[TimeControl "40/5400+30:1800+30"]

1. b3 {[%emt 0:00:03]} e5 {[%emt 0:00:29]} 2. Bb2 {[%emt 0:00:04]} Nc6 {[%emt 0:00:07]} 3. e3 {[%emt 0:00:05]} a6 {[%emt 0:00:05]} 4. d4 {[%emt 0:00:34]} exd4 {[%emt 0:00:29]} 5. exd4 {[%emt 0:00:05]} d5 {[%emt 0:00:09]} 6. Nf3 {[%emt 0:00:05]} Nf6 {[%emt 0:03:19]} 7. Bd3 {[%emt 0:00:13]} Be7 {[%emt 0:03:13]} 8. O-O {[%emt 0:00:08]} O-O {[%emt 0:00:07]} 9. h3 {[%emt 0:00:11]} Nb4 {[%emt 0:05:10]} 10. Be2 {[%emt 0:00:04]} Bf5 {[%emt 0:00:06]} 11. Na3 {[%emt 0:00:12]} Ne4 {[%emt 0:09:06]} 12. c3 {[%emt 0:04:29]} Nc6 {[%emt 0:00:12]} 13. Nc2 {[%emt 0:00:09]} Bf6 {[%emt 0:10:38]} 14. Ne3 {[%emt 0:08:44]} Be6 {[%emt 0:01:10]} 15. Nd2 {[%emt 0:06:15]} Nd6 {[%emt 0:03:44]} 16. Qc2 {[%emt 0:04:53]} g6 {[%emt 0:00:54]} 17. Bf3 {[%emt 0:07:13]} Ne7 {[%emt 0:00:27]} 18. g4 {[%emt 0:03:18]} Bg7 {[%emt 0:00:31]} 19. Rae1 {[%emt 0:01:01]} Qd7 {[%emt 0:01:00]} 20. c4 {[%emt 0:01:35]} c6 {[%emt 0:00:09]} 21. c5 {[%emt 0:01:48]} Nb5 {[%emt 0:00:29]} 22. Qd3 {[%emt 0:00:14]} f5 {[%emt 0:00:46]} 23. Re2 {[%emt 0:02:28]} fxg4 {[%emt 0:05:30]} 24. hxg4 {[%emt 0:04:11]} g5 {[%emt 0:08:57]} 25. a4 {[%emt 0:01:09]} Nc7 {[%emt 0:00:09]} 26. Ng2 {[%emt 0:02:09]} Ng6 {[%emt 0:00:27]} 27. Rfe1 {[%emt 0:00:28]} Bxg4 {[%emt 0:00:31]} 28. Bxg4 {[%emt 0:01:59]} Qxg4 {[%emt 0:00:08]} 29. Qg3 {[%emt 0:00:23]} Qxg3 {[%emt 0:00:24]} 30. fxg3 {[%emt 0:00:01]} h5 {[%emt 0:01:28]} 31. Ne3 {[%emt 0:02:04]} Ne6 {[%emt 0:10:09]} 32. Nc2 {[%emt 0:01:33]} Nxc5 {[%emt 0:00:47]} 33. Ba3 {[%emt 0:00:05]} Nd3 {[%emt 0:01:58]} 34. Rd1 {[%emt 0:01:30]} Rfe8 {[%emt 0:04:44]} 35. Rg2 {[%emt 0:04:18]} a5 {[%emt 0:06:09]} 36. Nf3 {[%emt 0:00:39]} Nb4 {[%emt 0:00:06]} 37. Bxb4 {[%emt 0:00:09]} g4 {[%emt 0:00:51]} 38. Nfe1 {[%emt 0:01:19]} axb4 {[%emt 0:00:08]} 39. Rh2 {[%emt 0:00:50]} h4 {[%emt 0:01:41]} 40. gxh4 {[%emt 0:00:00]} g3 {[%emt 0:00:00]} 41. Rhd2 {[%emt 0:06:29]} Nxh4 {[%emt 0:00:27]} 42. Rd3 {[%emt 0:00:24]} Nf5 {[%emt 0:02:01]} 43. Rf3 {[%emt 0:00:15]} Rf8 {[%emt 0:00:06]} 44. Ng2 {[%emt 0:00:17]} Rae8 {[%emt 0:01:33]} 45. Rf4 {[%emt 0:02:37]} Re2 {[%emt 0:00:16]} 46. Nge1 Ne3 {[%emt 0:07:47]} 47. Rxf8+ {[%emt 0:00:53]} Kxf8 {[%emt 0:00:07]} 48. Nxe3 {[%emt 0:00:25]} Rxe3 {[%emt 0:00:08]} 49. Nd3 {[%emt 0:00:04]} Bxd4 {[%emt 0:00:17]} 50. Kg2 {[%emt 0:00:03]} Ke7 {[%emt 0:02:04]} 51. Nxb4 {[%emt 0:00:31]} Bc5 {[%emt 0:00:10]} 52. Nd3 {[%emt 0:00:11]} Bd6 {[%emt 0:02:59]} 53. a5 {[%emt 0:00:28]} c5 {[%emt 0:02:18]} 0-1

[Event "Cracovia Festival-A 2023"]
[Site "Krakow"]
[Date "2023.12.29"]
[Round "3.37"]
[White "Ramirez Garcia, Jorge Alberto"]
[Black "Pyrig, Roman"]
[Result "0-1"]
[ECO "A13"]
[WhiteElo "2249"]
[BlackElo "2154"]
[Annotator "ChessBase"]
[PlyCount "80"]
[EventDate "2023.12.24"]
[EventType "swiss"]
[EventCountry "POL"]
[SourceTitle "playchess.com"]
[Source "ChessBase"]
[SourceQuality "1"]
[TimeControl "40/5400+30:1800+30"]

1. Nf3 {[%emt 0:02:20]} d5 {[%emt 0:09:01]} 2. c4 {[%emt 0:00:27]} e6 {[%emt 0:00:06]} 3. g3 {[%emt 0:00:12]} Nf6 {[%emt 0:00:04]} 4. Bg2 {[%emt 0:00:18]} c6 {[%emt 0:00:03]} 5. b3 {[%emt 0:06:33]} a5 {[%emt 0:03:26]} 6. Bb2 {[%emt 0:01:34]} a4 {[%emt 0:01:57]} 7. O-O {[%emt 0:00:44]} Nbd7 {[%emt 0:00:03]} 8. Qc2 {[%emt 0:01:25]} Bd6 {[%emt 0:01:23]} 9. d4 {[%emt 0:00:23]} a3 {[%emt 0:03:16]} 10. Bc1 {[%emt 0:01:43]} Bb4 {[%emt 0:09:23]} 11. Ne1 {[%emt 0:10:39]} Qe7 {[%emt 0:15:38]} 12. Nd3 {[%emt 0:01:21]} Bd6 {[%emt 0:00:02]} 13. c5 {[%emt 0:03:00]} Bc7 {[%emt 0:00:03]} 14. Bxa3 {[%emt 0:01:23]} e5 {[%emt 0:00:13]} 15. dxe5 {[%emt 0:08:45]} Nxe5 {[%emt 0:00:06]} 16. Bb2 {[%emt 0:01:51]} h5 {[%emt 0:00:04]} 17. Nd2 {[%emt 0:04:41]} Bf5 {[%emt 0:20:10]} 18. Rfe1 {[%emt 0:10:51]} O-O-O {[%emt 0:01:08]} 19. Nf3 {[%emt 0:00:31]} Neg4 {[%emt 0:01:36]} 20. Nd4 {[%emt 0:02:22]} Bg6 {[%emt 0:00:32]} 21. b4 {[%emt 0:06:04]} Nxf2 {[%emt 0:15:12]} 22. b5 {[%emt 0:00:06]} N6g4 {[%emt 0:09:17]} 23. bxc6 {[%emt 0:04:40]} Bxg3 {[%emt 0:04:39]} 24. cxb7+ {[%emt 0:01:37]} Kxb7 {[%emt 0:00:01]} 25. Qb3+ {[%emt 0:08:44]} Kc8 {[%emt 0:00:30]} 26. Nc6 {[%emt 0:16:17]} Bxh2+ {[%emt 0:03:58]} 27. Kf1 {[%emt 0:00:06]} Qh4 {[%emt 0:00:52]} 28. Na7+ {[%emt 0:00:49]} Kd7 {[%emt 0:00:00]} 29. Ne5+ {[%emt 0:02:40]} Ke8 {[%emt 0:01:35]} 30. Nxg4 {[%emt 0:02:50]} Nxg4 {[%emt 0:00:07]} 31. Bd4 {[%emt 0:00:21]} Be5 {[%emt 0:00:34]} 32. Qa4+ {[%emt 0:00:40]} Kf8 {[%emt 0:00:03]} 33. e4 {[%emt 0:00:29]} dxe4 {[%emt 0:00:33]} 34. Bg1 {[%emt 0:00:16]} Rd2 {[%emt 0:00:39]} 35. Re2 {[%emt 0:00:14]} Qf6+ {[%emt 0:00:38]} 36. Ke1 {[%emt 0:00:13]} Rxe2+ {[%emt 0:00:01]} 37. Kxe2 {[%emt 0:00:08]} Bxa1 {[%emt 0:00:05]} 38. c6 {[%emt 0:00:40]} Qb2+ {[%emt 0:00:10]} 39. Kf1 {[%emt 0:00:00]} e3 {[%emt 0:00:00]} 40. Be4 {[%emt 0:00:00]} Nh2+ {[%emt 0:00:00]} 0-1

[Event "Cracovia Festival-A 2023"]
[Site "Krakow"]
[Date "2023.12.29"]
[Round "3.38"]
[White "Keinanen, Anastasia"]
[Black "Gkavardinas, Antonios"]
[Result "1-0"]
[ECO "B19"]
[WhiteElo "2227"]
[BlackElo "2141"]
[Annotator "ChessBase"]
[PlyCount "139"]
[EventDate "2023.12.24"]
[EventType "swiss"]
[EventCountry "POL"]
[SourceTitle "playchess.com"]
[Source "ChessBase"]
[SourceQuality "1"]
[TimeControl "40/5400+30:1800+30"]

1. e4 {[%emt 0:00:02]} c6 {[%emt 0:00:09]} 2. d4 {[%emt 0:00:05]} d5 {[%emt 0:00:06]} 3. Nc3 {[%emt 0:00:04]} dxe4 {[%emt 0:00:12]} 4. Nxe4 {[%emt 0:00:04]} Bf5 {[%emt 0:00:12]} 5. Ng3 {[%emt 0:00:06]} Bg6 {[%emt 0:00:14]} 6. h4 {[%emt 0:00:11]} h6 {[%emt 0:00:07]} 7. Nf3 {[%emt 0:00:06]} Nd7 {[%emt 0:00:23]} 8. h5 {[%emt 0:00:05]} Bh7 {[%emt 0:00:06]} 9. Bd3 {[%emt 0:00:10]} Bxd3 {[%emt 0:00:16]} 10. Qxd3 {[%emt 0:00:04]} e6 {[%emt 0:00:16]} 11. Bd2 {[%emt 0:00:13]} Ngf6 {[%emt 0:00:24]} 12. O-O-O {[%emt 0:00:09]} Be7 {[%emt 0:00:10]} 13. Kb1 {[%emt 0:00:16]} O-O {[%emt 0:00:22]} 14. Ne4 {[%emt 0:00:13]} c5 {[%emt 0:00:45]} 15. g4 {[%emt 0:00:15]} Nxg4 {[%emt 0:00:52]} 16. Qe2 {[%emt 0:00:05]} Qb6 {[%emt 0:01:14]} 17. Ne5 {[%emt 0:00:18]} Ndxe5 {[%emt 0:09:31]} 18. dxe5 {[%emt 0:00:07]} f5 {[%emt 0:00:38]} 19. exf6 {[%emt 0:00:14]} Nxf6 {[%emt 0:00:15]} 20. Rhg1 {[%emt 0:00:23]} Nxe4 {[%emt 0:09:20]} 21. Qxe4 {[%emt 0:00:12]} Bf6 {[%emt 0:01:38]} 22. b3 {[%emt 0:00:04]} Rad8 {[%emt 0:27:30]} 23. Bxh6 {[%emt 0:01:05]} Rxd1+ {[%emt 0:13:56]} 24. Rxd1 {[%emt 0:00:25]} Rd8 {[%emt 0:02:04]} 25. Rg1 {[%emt 0:23:52]} Qd6 {[%emt 0:02:49]} 26. Bg5 {[%emt 0:33:21]} Qh2 {[%emt 0:11:44]} 27. Qxe6+ {[%emt 0:08:58]} Kh8 {[%emt 0:00:32]} 28. Qe1 {[%emt 0:11:15]} Bc3 {[%emt 0:04:56]} 29. Qc1 {[%emt 0:01:52]} Re8 {[%emt 0:03:15]} 30. Be3 {[%emt 0:08:00]} Bf6 {[%emt 0:03:32]} 31. h6 {[%emt 0:05:12]} Qe5 {[%emt 0:01:04]} 32. hxg7+ {[%emt 0:00:12]} Bxg7 {[%emt 0:00:26]} 33. c3 {[%emt 0:00:54]} Qxc3 {[%emt 0:02:14]} 34. Qxc3 {[%emt 0:00:05]} Bxc3 {[%emt 0:00:08]} 35. Kc2 {[%emt 0:00:52]} Bg7 {[%emt 0:01:17]} 36. Kd3 {[%emt 0:01:05]} b6 {[%emt 0:01:03]} 37. Kc4 {[%emt 0:02:14]} Re7 {[%emt 0:01:17]} 38. Kd5 {[%emt 0:01:02]} Kh7 {[%emt 0:01:02]} 39. Rg4 {[%emt 0:01:27]} Bc3 {[%emt 0:01:24]} 40. Kd6 {[%emt 0:00:00]} Rf7 {[%emt 0:00:00]} 41. Ke6 {[%emt 0:08:52]} Rf6+ {[%emt 0:02:50]} 42. Kd5 {[%emt 0:01:29]} Be1 {[%emt 0:07:54]} 43. Rf4 {[%emt 0:07:34]} Rxf4 {[%emt 0:08:11]} 44. Bxf4 {[%emt 0:00:06]} Bxf2 {[%emt 0:00:19]} 45. Bb8 {[%emt 0:00:26]} a5 {[%emt 0:03:44]} 46. a4 {[%emt 0:01:02]} Kg6 {[%emt 0:01:21]} 47. Bc7 {[%emt 0:02:06]} Kf7 {[%emt 0:00:51]} 48. Kc6 {[%emt 0:00:43]} Ke7 {[%emt 0:02:02]} 49. Bxb6 {[%emt 0:00:28]} Be1 {[%emt 0:00:34]} 50. Bxc5+ {[%emt 0:03:33]} Kd8 {[%emt 0:00:13]} 51. Kb7 {[%emt 0:00:03]} Kd7 {[%emt 0:00:45]} 52. Bb6 {[%emt 0:01:04]} Bb4 {[%emt 0:02:11]} 53. Ka6 {[%emt 0:00:12]} Kc8 {[%emt 0:00:23]} 54. Bxa5 {[%emt 0:00:05]} Bc5 {[%emt 0:00:52]} 55. Bb6 {[%emt 0:01:40]} Bd6 {[%emt 0:02:24]} 56. Kb5 {[%emt 0:08:41]} Kb7 {[%emt 0:01:01]} 57. Bc5 {[%emt 0:00:03]} Bg3 {[%emt 0:02:58]} 58. Kc4 {[%emt 0:00:04]} Be1 {[%emt 0:01:27]} 59. Bd4 {[%emt 0:00:05]} Bd2 {[%emt 0:00:57]} 60. Bc3 {[%emt 0:00:05]} Bg5 {[%emt 0:00:08]} 61. b4 {[%emt 0:00:12]} Bh4 {[%emt 0:01:08]} 62. b5 {[%emt 0:00:41]} Bd8 {[%emt 0:00:54]} 63. a5 {[%emt 0:01:16]} Ka7 {[%emt 0:00:09]} 64. Kd5 {[%emt 0:00:37]} Kb7 {[%emt 0:00:47]} 65. Kd6 {[%emt 0:02:43]} Bh4 {[%emt 0:01:02]} 66. a6+ {[%emt 0:02:09]} Kc8 {[%emt 0:00:30]} 67. Kc6 {[%emt 0:01:35]} Kb8 {[%emt 0:00:28]} 68. Be5+ {[%emt 0:00:11]} Ka8 {[%emt 0:00:06]} 69. b6 {[%emt 0:00:07]} Bg3 {[%emt 0:00:41]} 70. b7+ {[%emt 0:00:07]} 1-0